[Event "*** Titled Tuesday Blitz"]
[Site "Chess.com"]
[Date "2018.07.03"]
[Round "2"]
[White "Gvalch"]
[Black "kuli4ik"]
[Result "0-1"]
[WhiteElo "2613"]
[BlackElo "2749"]
[TimeControl "180+2"]
[EndTime "13:24:07 PDT"]
[Termination "kuli4ik won by resignation"]

1. d4 {[%clk 0:03:01.9]} 1... d5 {[%clk 0:02:57.8]} 2. c4 {[%clk 0:03:03.2]}
2... c6 {[%clk 0:02:58.9]} 3. Nf3 {[%clk 0:03:04.7]} 3... Nf6 {[%clk 0:02:59.7]}
4. g3 {[%clk 0:03:06.3]} 4... Bf5 {[%clk 0:02:59.3]} 5. Nc3 {[%clk 0:03:05.1]}
5... e6 {[%clk 0:03:00.5]} 6. Nh4 {[%clk 0:03:04.6]} 6... Be4 {[%clk 0:03:01]}
7. f3 {[%clk 0:03:05.5]} 7... Bg6 {[%clk 0:03:02]} 8. Qb3 {[%clk 0:03:06.9]}
8... Qb6 {[%clk 0:03:02.1]} 9. Nxg6 {[%clk 0:03:03]} 9... hxg6 {[%clk
0:03:02.4]} 10. e3 {[%clk 0:03:03.5]} 10... Nbd7 {[%clk 0:02:56]} 11. Bd2 {[%clk
0:03:04.6]} 11... Be7 {[%clk 0:02:52.4]} 12. O-O-O {[%clk 0:03:05.7]} 12... Qxb3
{[%clk 0:02:49.4]} 13. axb3 {[%clk 0:03:06.3]} 13... a6 {[%clk 0:02:48.3]} 14.
f4 {[%clk 0:02:51.1]} 14... Bb4 {[%clk 0:02:45.8]} 15. Be2 {[%clk 0:02:40.7]}
15... Bxc3 {[%clk 0:02:46.2]} 16. Bxc3 {[%clk 0:02:41.3]} 16... Ne4 {[%clk
0:02:47.7]} 17. Rdf1 {[%clk 0:02:35.1]} 17... f5 {[%clk 0:02:46.2]} 18. Be1
{[%clk 0:02:31.8]} 18... Ndf6 {[%clk 0:02:46.2]} 19. h4 {[%clk 0:02:25.7]} 19...
Rc8 {[%clk 0:02:42.5]} 20. c5 {[%clk 0:02:26.2]} 20... Ke7 {[%clk 0:02:37.2]}
21. Rhg1 {[%clk 0:02:24.5]} 21... Rh7 {[%clk 0:02:34]} 22. Rg2 {[%clk
0:02:24.9]} 22... Ng4 {[%clk 0:02:33.4]} 23. Rf3 {[%clk 0:02:02.1]} 23... Rb8
{[%clk 0:02:29.2]} 24. Ba5 {[%clk 0:01:54.1]} 24... Kd7 {[%clk 0:02:30.2]} 25.
Bd1 {[%clk 0:01:52.6]} 25... Re8 {[%clk 0:02:26.5]} 26. Kc2 {[%clk 0:01:53.5]}
26... Reh8 {[%clk 0:02:18.7]} 27. Kd3 {[%clk 0:01:54]} 27... Rb8 {[%clk
0:02:18.7]} 28. Rf1 {[%clk 0:01:54.8]} 28... Rhh8 {[%clk 0:02:17.3]} 29. Bxg4
{[%clk 0:01:44.9]} 29... fxg4 {[%clk 0:02:19.2]} 30. Bb6 {[%clk 0:01:44.1]}
30... Rbf8 {[%clk 0:02:16.3]} 31. Ra1 {[%clk 0:01:37.9]} 31... Rh5 {[%clk
0:02:14.9]} 32. b4 {[%clk 0:01:37.6]} 32... Rh7 {[%clk 0:02:07.1]} 33. Ke2
{[%clk 0:01:38.2]} 33... g5 {[%clk 0:02:03]} 34. hxg5 {[%clk 0:01:31.9]} 34...
Rh3 {[%clk 0:02:03.4]} 35. Rag1 {[%clk 0:01:32.7]} 35... Rfh8 {[%clk 0:02:02.8]}
36. Ba5 {[%clk 0:01:33.5]} 36... Rh1 {[%clk 0:01:57.3]} 37. Kf1 {[%clk
0:01:24.8]} 37... R8h3 {[%clk 0:01:55.7]} 38. b5 {[%clk 0:01:23.6]} 38... Rxg1+
{[%clk 0:01:47.1]} 39. Kxg1 {[%clk 0:01:23.9]} 39... Rxg3 {[%clk 0:01:48.2]} 40.
bxc6+ {[%clk 0:01:15.7]} 40... Kxc6 {[%clk 0:01:46.1]} 41. Rxg3 {[%clk
0:01:15.7]} 41... Nxg3 {[%clk 0:01:46.6]} 42. g6 {[%clk 0:01:12.4]} 42... Kd7
{[%clk 0:01:40.3]} 43. Kf2 {[%clk 0:01:00.9]} 43... Ne4+ {[%clk 0:01:40.8]} 44.
Kg2 {[%clk 0:01:01]} 44... Ke7 {[%clk 0:01:42]} 45. Bc7 {[%clk 0:01:01.9]} 45...
Kf6 {[%clk 0:01:43.2]} 46. Be5+ {[%clk 0:01:01.5]} 46... Kxg6 {[%clk 0:01:44.2]}
47. Bc7 {[%clk 0:01:03]} 47... Kf5 {[%clk 0:01:44.7]} 48. Be5 {[%clk 0:01:04]}
48... g5 {[%clk 0:01:45.4]} 49. fxg5 {[%clk 0:01:05.9]} 49... Kxg5 {[%clk
0:01:46.6]} 50. Bf4+ {[%clk 0:01:06.2]} 50... Kf6 {[%clk 0:01:45.1]} 51. Be5+
{[%clk 0:01:07.4]} 51... Ke7 {[%clk 0:01:46.2]} 52. Bc7 {[%clk 0:01:04]} 52...
Kd7 {[%clk 0:01:47.3]} 53. Ba5 {[%clk 0:01:04.8]} 53... Kc6 {[%clk 0:01:48.4]}
54. b3 {[%clk 0:01:06]} 54... Kb5 {[%clk 0:01:49.5]} 55. Be1 {[%clk 0:01:07.2]}
55... a5 {[%clk 0:01:49.4]} 56. Kh2 {[%clk 0:01:07.1]} 56... a4 {[%clk
0:01:50.4]} 57. bxa4+ {[%clk 0:01:08.3]} 57... Kxa4 {[%clk 0:01:52.3]} 58. Kg2
{[%clk 0:01:10.1]} 58... Kb3 {[%clk 0:01:53.2]} 59. Kf1 {[%clk 0:01:11.3]} 59...
Kc2 {[%clk 0:01:51.2]} 60. Ke2 {[%clk 0:01:12.5]} 60... Nc3+ {[%clk 0:01:48.6]}
61. Kf2 {[%clk 0:01:11.7]} 61... Kd3 {[%clk 0:01:41.6]} 62. Kg3 {[%clk 0:01:12]}
62... Ne2+ {[%clk 0:01:40.3]} 63. Kxg4 {[%clk 0:01:11.8]} 63... Kxe3 {[%clk
0:01:41.8]} 64. Kg5 {[%clk 0:01:11.3]} 64... Kxd4 {[%clk 0:01:41.1]} 65. Kf6
{[%clk 0:01:11.9]} 65... Nf4 {[%clk 0:01:36.8]} 66. Bd2 {[%clk 0:01:01.8]} 66...
e5 {[%clk 0:01:36]} 67. Kf5 {[%clk 0:01:03.1]} 67... Nd3 {[%clk 0:01:36.6]} 68.
Ba5 {[%clk 0:01:02.3]} 68... Nxc5 {[%clk 0:01:33.8]} 0-1

[Event "*** Titled Tuesday Blitz"]
[Site "Chess.com"]
[Date "2018.07.03"]
[Round "2"]
[White "VitaliyBernadskiy"]
[Black "The_Unbeatable_One"]
[Result "0-1"]
[WhiteElo "2701"]
[BlackElo "2671"]
[TimeControl "180+2"]
[EndTime "13:24:12 PDT"]
[Termination "The_Unbeatable_One won by resignation"]

1. e4 {[%clk 0:02:58.1]} 1... e5 {[%clk 0:02:56.2]} 2. Nf3 {[%clk 0:02:58.8]}
2... Nc6 {[%clk 0:02:56.8]} 3. Bb5 {[%clk 0:02:59.5]} 3... a6 {[%clk 0:02:57.3]}
4. Ba4 {[%clk 0:03:00.1]} 4... Nf6 {[%clk 0:02:58.1]} 5. Nc3 {[%clk 0:03:00.8]}
5... b5 {[%clk 0:02:53.6]} 6. Bb3 {[%clk 0:03:00.5]} 6... Be7 {[%clk 0:02:54.1]}
7. a4 {[%clk 0:02:52.8]} 7... Rb8 {[%clk 0:02:36.9]} 8. O-O {[%clk 0:02:49.3]}
8... O-O {[%clk 0:02:35.5]} 9. d3 {[%clk 0:02:49.8]} 9... d6 {[%clk 0:02:33]}
10. axb5 {[%clk 0:02:47.3]} 10... axb5 {[%clk 0:02:33]} 11. h3 {[%clk
0:02:38.5]} 11... h6 {[%clk 0:02:21]} 12. Be3 {[%clk 0:02:34.9]} 12... Be6
{[%clk 0:02:18.1]} 13. Nd5 {[%clk 0:02:34]} 13... Re8 {[%clk 0:02:08.3]} 14. c3
{[%clk 0:02:29.3]} 14... Bf8 {[%clk 0:02:08.8]} 15. d4 {[%clk 0:02:08.9]} 15...
Nxe4 {[%clk 0:01:59]} 16. Ra6 {[%clk 0:01:37.6]} 16... Bd7 {[%clk 0:01:46.2]}
17. Qd3 {[%clk 0:01:31]} 17... Nf6 {[%clk 0:01:42.6]} 18. dxe5 {[%clk
0:01:21.1]} 18... Nxe5 {[%clk 0:01:37.3]} 19. Nxe5 {[%clk 0:01:17.2]} 19... Rxe5
{[%clk 0:01:37.1]} 20. Nxf6+ {[%clk 0:01:00.9]} 20... Qxf6 {[%clk 0:01:31.8]}
21. Bd4 {[%clk 0:01:01.7]} 21... Qf5 {[%clk 0:01:32.2]} 22. Qg3 {[%clk
0:01:02.3]} 22... Ree8 {[%clk 0:01:25.8]} 23. Ra7 {[%clk 0:01:03]} 23... Rbc8
{[%clk 0:01:22.4]} 24. Rfa1 {[%clk 0:00:45.9]} 24... c5 {[%clk 0:01:21]} 25. Be3
{[%clk 0:00:46.1]} 25... c4 {[%clk 0:01:19.5]} 26. Bd1 {[%clk 0:00:46.2]} 26...
Be6 {[%clk 0:01:17.2]} 27. Bxh6 {[%clk 0:00:43.6]} 27... Qg6 {[%clk 0:01:07.8]}
28. Qxg6 {[%clk 0:00:43]} 28... fxg6 {[%clk 0:01:09.7]} 29. Be3 {[%clk
0:00:44.2]} 29... d5 {[%clk 0:01:02.8]} 30. Bd4 {[%clk 0:00:45]} 30... Re7
{[%clk 0:01:00.9]} 31. Bf3 {[%clk 0:00:40]} 31... Rf7 {[%clk 0:00:58.4]} 32.
Rxf7 {[%clk 0:00:39.3]} 32... Bxf7 {[%clk 0:00:58.6]} 33. Ra7 {[%clk 0:00:41.1]}
33... b4 {[%clk 0:00:57.3]} 34. Rd7 {[%clk 0:00:39.5]} 34... b3 {[%clk
0:00:48.9]} 35. Bxd5 {[%clk 0:00:23.8]} 35... Bxd5 {[%clk 0:00:48.9]} 36. Rxd5
{[%clk 0:00:25.7]} 36... Ba3 {[%clk 0:00:33.5]} 37. Rd7 {[%clk 0:00:14.3]} 37...
Bxb2 {[%clk 0:00:33]} 38. Rxg7+ {[%clk 0:00:15.6]} 38... Kf8 {[%clk 0:00:34.1]}
39. Rh7 {[%clk 0:00:15.8]} 39... Re8 {[%clk 0:00:29.1]} 40. Kf1 {[%clk
0:00:13.5]} 40... Bc1 {[%clk 0:00:26.5]} 41. Rb7 {[%clk 0:00:13.5]} 41... b2
{[%clk 0:00:24.8]} 42. Bc5+ {[%clk 0:00:07.8]} 42... Kg8 {[%clk 0:00:25.1]} 43.
Ba3 {[%clk 0:00:08.1]} 43... Bd2 {[%clk 0:00:21.4]} 44. g3 {[%clk 0:00:03.6]}
44... Re1+ {[%clk 0:00:21.8]} 0-1

[Event "*** Titled Tuesday Blitz"]
[Site "Chess.com"]
[Date "2018.07.03"]
[Round "2"]
[White "Dr_Mortimer"]
[Black "Swarnapuri"]
[Result "1-0"]
[WhiteElo "2823"]
[BlackElo "2558"]
[TimeControl "180+2"]
[EndTime "13:24:13 PDT"]
[Termination "Dr_Mortimer won by resignation"]

1. e4 {[%clk 0:03:01.9]} 1... Nc6 {[%clk 0:00:52.8]} 2. Nf3 {[%clk 0:02:52.9]}
2... d6 {[%clk 0:00:53.3]} 3. d4 {[%clk 0:02:51.5]} 3... Nf6 {[%clk 0:00:55.2]}
4. Nc3 {[%clk 0:02:52.1]} 4... Bg4 {[%clk 0:00:56.7]} 5. d5 {[%clk 0:02:49]}
5... Nb8 {[%clk 0:00:56.4]} 6. h3 {[%clk 0:02:47.5]} 6... Bxf3 {[%clk
0:00:57.1]} 7. Qxf3 {[%clk 0:02:49.4]} 7... g6 {[%clk 0:00:59]} 8. Qd1 {[%clk
0:02:45.3]} 8... Bg7 {[%clk 0:00:59.5]} 9. Be2 {[%clk 0:02:46.6]} 9... O-O
{[%clk 0:01:00.9]} 10. O-O {[%clk 0:02:47.7]} 10... c6 {[%clk 0:01:02.8]} 11.
Bf3 {[%clk 0:02:42]} 11... Nfd7 {[%clk 0:01:02.7]} 12. g3 {[%clk 0:02:42.5]}
12... a5 {[%clk 0:01:04]} 13. Re1 {[%clk 0:02:42.3]} 13... Na6 {[%clk
0:01:05.2]} 14. Bg2 {[%clk 0:02:42.5]} 14... Nac5 {[%clk 0:01:06.4]} 15. Be3
{[%clk 0:02:31.2]} 15... Qb6 {[%clk 0:01:06.4]} 16. Rb1 {[%clk 0:02:31.3]} 16...
a4 {[%clk 0:01:07.8]} 17. a3 {[%clk 0:02:31.9]} 17... Qa5 {[%clk 0:01:08.7]} 18.
Bd2 {[%clk 0:02:29.8]} 18... Qc7 {[%clk 0:01:08.7]} 19. Qe2 {[%clk 0:02:30]}
19... e5 {[%clk 0:01:09.5]} 20. Rbd1 {[%clk 0:02:27.4]} 20... Rfd8 {[%clk
0:01:09.8]} 21. Be3 {[%clk 0:02:22.3]} 21... Nb8 {[%clk 0:01:08.7]} 22. h4
{[%clk 0:02:19.6]} 22... Nba6 {[%clk 0:01:09]} 23. h5 {[%clk 0:02:20.1]} 23...
Qb6 {[%clk 0:01:09.9]} 24. Bc1 {[%clk 0:02:19.3]} 24... Qc7 {[%clk 0:01:09.8]}
25. Bf3 {[%clk 0:02:13.4]} 25... Qe7 {[%clk 0:01:10.4]} 26. Kg2 {[%clk
0:02:14.2]} 26... Nc7 {[%clk 0:01:11.9]} 27. Rh1 {[%clk 0:02:14.2]} 27... cxd5
{[%clk 0:01:11]} 28. Nxd5 {[%clk 0:02:13.3]} 28... Nxd5 {[%clk 0:01:12.4]} 29.
Rxd5 {[%clk 0:02:15.2]} 29... Ne6 {[%clk 0:01:13.6]} 30. c3 {[%clk 0:02:16]}
30... Ng5 {[%clk 0:01:12.5]} 31. Bg4 {[%clk 0:02:05.7]} 31... Ne6 {[%clk
0:01:13.6]} 32. Be3 {[%clk 0:01:59.9]} 32... Nc7 {[%clk 0:01:14.3]} 33. Rdd1
{[%clk 0:01:56]} 33... d5 {[%clk 0:01:16.2]} 34. hxg6 {[%clk 0:01:53.3]} 34...
hxg6 {[%clk 0:01:16.2]} 35. Bb6 {[%clk 0:01:34]} 35... d4 {[%clk 0:01:13.2]} 36.
Qc4 {[%clk 0:01:32.3]} 36... Ne8 {[%clk 0:01:02]} 37. Bxd8 {[%clk 0:01:31.7]}
37... Rxd8 {[%clk 0:01:03.7]} 38. Bf3 {[%clk 0:01:22.5]} 38... Nd6 {[%clk
0:01:04.5]} 39. Qxa4 {[%clk 0:01:23.1]} 39... b5 {[%clk 0:01:05]} 40. Qb4 {[%clk
0:01:22.7]} 40... Qf6 {[%clk 0:01:05.8]} 41. cxd4 {[%clk 0:01:19.2]} 41... exd4
{[%clk 0:01:06.6]} 42. Rhe1 {[%clk 0:00:40.4]} 42... Re8 {[%clk 0:01:06.8]} 43.
e5 {[%clk 0:00:34.3]} 43... Rxe5 {[%clk 0:01:05.7]} 44. Rxe5 {[%clk 0:00:36.2]}
44... Qxe5 {[%clk 0:01:06.8]} 45. Qe1 {[%clk 0:00:31.5]} 45... Qf6 {[%clk
0:01:04]} 46. b3 {[%clk 0:00:29.5]} 46... Qd8 {[%clk 0:00:59.1]} 47. Qb4 {[%clk
0:00:20]} 47... Qb6 {[%clk 0:00:57.5]} 48. Rc1 {[%clk 0:00:20.1]} 48... Qa6
{[%clk 0:00:56.5]} 49. Rc6 {[%clk 0:00:20.1]} 1-0

[Event "*** Titled Tuesday Blitz"]
[Site "Chess.com"]
[Date "2018.07.03"]
[Round "2"]
[White "Karina_Oparina"]
[Black "Rickstereo"]
[Result "0-1"]
[WhiteElo "2209"]
[BlackElo "2191"]
[TimeControl "180+2"]
[EndTime "13:24:13 PDT"]
[Termination "Rickstereo won by resignation"]

1. Nf3 {[%clk 0:03:00.5]} 1... Nf6 {[%clk 0:02:57.9]} 2. g3 {[%clk 0:03:00.9]}
2... b6 {[%clk 0:02:58.7]} 3. Bg2 {[%clk 0:03:01.9]} 3... Bb7 {[%clk 0:03:00]}
4. O-O {[%clk 0:03:02.8]} 4... c5 {[%clk 0:03:01]} 5. c4 {[%clk 0:03:02.6]} 5...
e6 {[%clk 0:03:01.7]} 6. d4 {[%clk 0:03:03.2]} 6... cxd4 {[%clk 0:03:02.1]} 7.
Qxd4 {[%clk 0:03:03.5]} 7... Be7 {[%clk 0:03:01.4]} 8. Nc3 {[%clk 0:03:03.1]}
8... d6 {[%clk 0:03:00.4]} 9. Rd1 {[%clk 0:03:01]} 9... a6 {[%clk 0:03:00.7]}
10. b3 {[%clk 0:03:00.6]} 10... Nbd7 {[%clk 0:02:59.6]} 11. Bb2 {[%clk
0:03:00.4]} 11... O-O {[%clk 0:02:56.5]} 12. Rac1 {[%clk 0:03:00.2]} 12... Qc7
{[%clk 0:02:54.9]} 13. Qf4 {[%clk 0:02:46.2]} 13... Rad8 {[%clk 0:02:24.6]} 14.
h3 {[%clk 0:02:45.4]} 14... Qb8 {[%clk 0:02:17.2]} 15. g4 {[%clk 0:02:43.1]}
15... Nc5 {[%clk 0:02:15.2]} 16. b4 {[%clk 0:02:34.5]} 16... Nce4 {[%clk
0:02:11]} 17. Nxe4 {[%clk 0:02:34.1]} 17... Nxe4 {[%clk 0:02:11.7]} 18. Ne1
{[%clk 0:02:30.5]} 18... d5 {[%clk 0:02:08.2]} 19. Qxb8 {[%clk 0:02:29.9]} 19...
Rxb8 {[%clk 0:02:07.5]} 20. Bxe4 {[%clk 0:02:26.8]} 20... dxe4 {[%clk
0:02:06.8]} 21. c5 {[%clk 0:02:23]} 21... bxc5 {[%clk 0:01:59.8]} 22. bxc5
{[%clk 0:02:23]} 22... Bd5 {[%clk 0:02:00.6]} 23. Be5 {[%clk 0:02:23.3]} 23...
Rbc8 {[%clk 0:01:52.8]} 24. Bd6 {[%clk 0:02:21.7]} 24... Bxd6 {[%clk 0:01:46.7]}
25. cxd6 {[%clk 0:02:21.9]} 25... Rcd8 {[%clk 0:01:48]} 26. Nc2 {[%clk
0:02:14.8]} 26... Rxd6 {[%clk 0:01:43.8]} 27. Nb4 {[%clk 0:02:15.4]} 27... g6
{[%clk 0:01:19.6]} 28. Rc5 {[%clk 0:02:12.4]} 28... Rfd8 {[%clk 0:01:15.2]} 29.
Ra5 {[%clk 0:02:08.9]} 29... Bc4 {[%clk 0:01:11.4]} 30. Rxd6 {[%clk 0:02:07.2]}
30... Rxd6 {[%clk 0:01:13.3]} 31. e3 {[%clk 0:02:02.5]} 31... Rd1+ {[%clk
0:01:01.1]} 32. Kg2 {[%clk 0:02:02.5]} 32... Be2 {[%clk 0:00:42.4]} 33. Nc2
{[%clk 0:01:52.8]} 33... Bf3+ {[%clk 0:00:41.8]} 34. Kg3 {[%clk 0:01:53.1]}
34... Rg1+ {[%clk 0:00:36.5]} 35. Kf4 {[%clk 0:01:51.4]} 35... Rg2 {[%clk
0:00:37.5]} 36. Nd4 {[%clk 0:01:46.4]} 36... Rxf2 {[%clk 0:00:37.9]} 37. Nxf3
{[%clk 0:01:47]} 37... Rxf3+ {[%clk 0:00:38.6]} 38. Kxe4 {[%clk 0:01:47.7]}
38... Rxh3 {[%clk 0:00:39.7]} 39. g5 {[%clk 0:01:46.2]} 39... h5 {[%clk
0:00:23.2]} 40. Rxa6 {[%clk 0:01:43.3]} 40... Rg3 {[%clk 0:00:21.7]} 41. Ra5
{[%clk 0:01:40.5]} 41... h4 {[%clk 0:00:21.7]} 42. Kf4 {[%clk 0:01:40.9]} 42...
Rg2 {[%clk 0:00:21.1]} 43. e4 {[%clk 0:01:31.8]} 43... h3 {[%clk 0:00:21.2]} 44.
Ra3 {[%clk 0:01:32.8]} 44... h2 {[%clk 0:00:21.4]} 45. Rh3 {[%clk 0:01:33.6]}
45... Rxa2 {[%clk 0:00:22.2]} 46. e5 {[%clk 0:01:33.5]} 46... Kg7 {[%clk
0:00:23.2]} 47. Kg3 {[%clk 0:01:31.1]} 47... Re2 {[%clk 0:00:23.9]} 48. Kf4
{[%clk 0:01:30.8]} 48... Rf2+ {[%clk 0:00:18]} 49. Kg3 {[%clk 0:01:28.7]} 49...
Rf5 {[%clk 0:00:18.4]} 50. Rxh2 {[%clk 0:01:27.4]} 50... Rxg5+ {[%clk
0:00:17.8]} 51. Kf4 {[%clk 0:01:27.6]} 51... Rf5+ {[%clk 0:00:18.9]} 52. Ke4
{[%clk 0:01:28.4]} 52... g5 {[%clk 0:00:19.6]} 53. Rg2 {[%clk 0:01:26]} 53...
Kg6 {[%clk 0:00:19.7]} 54. Rg1 {[%clk 0:01:27.3]} 54... Rf4+ {[%clk 0:00:20.8]}
55. Ke3 {[%clk 0:01:27.9]} 55... Kf5 {[%clk 0:00:21.8]} 56. Kd3 {[%clk
0:01:26.4]} 56... g4 {[%clk 0:00:21.6]} 57. Rg2 {[%clk 0:01:23.5]} 57... Kxe5
{[%clk 0:00:21.8]} 0-1

[Event "*** Titled Tuesday Blitz"]
[Site "Chess.com"]
[Date "2018.07.03"]
[Round "2"]
[White "swayamsm"]
[Black "Firouzja2003"]
[Result "0-1"]
[WhiteElo "2594"]
[BlackElo "2811"]
[TimeControl "180+2"]
[EndTime "13:24:23 PDT"]
[Termination "Firouzja2003 won by resignation"]

1. d4 {[%clk 0:03:01.9]} 1... Nf6 {[%clk 0:02:52.8]} 2. Nf3 {[%clk 0:03:01.8]}
2... d6 {[%clk 0:02:48.8]} 3. Bf4 {[%clk 0:02:58]} 3... g6 {[%clk 0:02:42.4]} 4.
Nbd2 {[%clk 0:02:54.4]} 4... Bg7 {[%clk 0:02:42.4]} 5. e4 {[%clk 0:02:47.7]}
5... O-O {[%clk 0:02:39.9]} 6. Bc4 {[%clk 0:02:41.2]} 6... Nc6 {[%clk
0:02:35.5]} 7. c3 {[%clk 0:02:37.3]} 7... Nh5 {[%clk 0:02:31.2]} 8. Be3 {[%clk
0:02:32.3]} 8... e5 {[%clk 0:02:29.4]} 9. dxe5 {[%clk 0:02:29.2]} 9... Nxe5
{[%clk 0:02:19.4]} 10. Nxe5 {[%clk 0:02:29.4]} 10... dxe5 {[%clk 0:02:21.3]} 11.
Nf3 {[%clk 0:02:15.1]} 11... Qe7 {[%clk 0:02:18.3]} 12. h3 {[%clk 0:01:36.1]}
12... Nf4 {[%clk 0:02:07.6]} 13. O-O {[%clk 0:01:24.2]} 13... Bd7 {[%clk
0:02:03.9]} 14. Bxf4 {[%clk 0:01:23.3]} 14... exf4 {[%clk 0:02:05]} 15. Re1
{[%clk 0:01:23.2]} 15... Rad8 {[%clk 0:02:05.2]} 16. Qb3 {[%clk 0:01:21.7]}
16... Bc8 {[%clk 0:01:50.1]} 17. e5 {[%clk 0:01:18.2]} 17... Kh8 {[%clk
0:01:46]} 18. a4 {[%clk 0:01:10.6]} 18... Rde8 {[%clk 0:01:19.2]} 19. Re4 {[%clk
0:01:09.7]} 19... g5 {[%clk 0:01:19.5]} 20. Rae1 {[%clk 0:01:08.8]} 20... Bf5
{[%clk 0:01:20]} 21. R4e2 {[%clk 0:01:08.2]} 21... g4 {[%clk 0:01:20.5]} 22. Nd4
{[%clk 0:01:07]} 22... Bc8 {[%clk 0:01:18.3]} 23. hxg4 {[%clk 0:01:04.8]} 23...
Bxg4 {[%clk 0:01:15.4]} 24. Re4 {[%clk 0:00:59.9]} 24... Qg5 {[%clk 0:01:12.6]}
25. Qxb7 {[%clk 0:00:39.9]} 25... Rb8 {[%clk 0:00:56.3]} 26. Qd5 {[%clk
0:00:31.1]} 26... Rfd8 {[%clk 0:00:38.1]} 27. Qxf7 {[%clk 0:00:27.5]} 27... Bh3
{[%clk 0:00:39.2]} 28. Bf1 {[%clk 0:00:27.4]} 28... Rf8 {[%clk 0:00:30.8]} 29.
Ne6 {[%clk 0:00:23.5]} 29... Bxe6 {[%clk 0:00:25.4]} 30. Qxe6 {[%clk 0:00:25.4]}
30... f3 {[%clk 0:00:26.8]} 31. g3 {[%clk 0:00:24.2]} 31... Rxb2 {[%clk
0:00:27.9]} 32. R4e3 {[%clk 0:00:19.7]} 32... Rb6 {[%clk 0:00:18.9]} 33. Qd5
{[%clk 0:00:17.8]} 33... Qh5 {[%clk 0:00:19.8]} 34. Qe4 {[%clk 0:00:12.2]} 34...
Rh6 {[%clk 0:00:20.8]} 35. Qh4 {[%clk 0:00:13.7]} 35... Qe8 {[%clk 0:00:20.7]}
36. Qg4 {[%clk 0:00:14.6]} 36... Rg6 {[%clk 0:00:22.1]} 37. Qh5 {[%clk
0:00:15.6]} 37... Rxg3+ {[%clk 0:00:20.4]} 38. fxg3 {[%clk 0:00:17.5]} 38... f2+
{[%clk 0:00:20.6]} 39. Kg2 {[%clk 0:00:18.7]} 39... fxe1=N+ {[%clk 0:00:11.6]}
0-1

[Event "*** Titled Tuesday Blitz"]
[Site "Chess.com"]
[Date "2018.07.03"]
[Round "2"]
[White "Shant_Sargsyan"]
[Black "moro182"]
[Result "1/2-1/2"]
[WhiteElo "2896"]
[BlackElo "2598"]
[TimeControl "180+2"]
[EndTime "13:24:32 PDT"]
[Termination "Game drawn by repetition"]

1. d4 {[%clk 0:03:01.9]} 1... d5 {[%clk 0:03:00.4]} 2. c4 {[%clk 0:03:03]} 2...
e6 {[%clk 0:03:01.5]} 3. Nf3 {[%clk 0:03:03.6]} 3... Nf6 {[%clk 0:03:02.7]} 4.
g3 {[%clk 0:03:05.1]} 4... Be7 {[%clk 0:03:02.8]} 5. Bg2 {[%clk 0:03:05.6]} 5...
O-O {[%clk 0:03:04.3]} 6. Nc3 {[%clk 0:03:07.2]} 6... Nc6 {[%clk 0:03:00.3]} 7.
Ne5 {[%clk 0:03:02.6]} 7... dxc4 {[%clk 0:02:53.4]} 8. Bxc6 {[%clk 0:03:02.2]}
8... bxc6 {[%clk 0:02:55.3]} 9. Nxc6 {[%clk 0:03:03.9]} 9... Qe8 {[%clk
0:02:56.3]} 10. Nxe7+ {[%clk 0:03:04.6]} 10... Qxe7 {[%clk 0:02:58.2]} 11. Qa4
{[%clk 0:03:05.5]} 11... c5 {[%clk 0:02:56.4]} 12. dxc5 {[%clk 0:03:07.4]} 12...
Qxc5 {[%clk 0:02:53.8]} 13. Be3 {[%clk 0:03:06.9]} 13... Qh5 {[%clk 0:02:50.4]}
14. Qxc4 {[%clk 0:02:41.5]} 14... Rb8 {[%clk 0:02:38.5]} 15. f3 {[%clk
0:02:18.4]} 15... Rxb2 {[%clk 0:02:30.9]} 16. O-O {[%clk 0:01:48.3]} 16... e5
{[%clk 0:01:51.8]} 17. Rab1 {[%clk 0:01:12.8]} 17... Be6 {[%clk 0:01:46.3]} 18.
Qa4 {[%clk 0:01:04.6]} 18... Rxb1 {[%clk 0:01:44.5]} 19. Rxb1 {[%clk 0:01:06.5]}
19... e4 {[%clk 0:01:34.1]} 20. Nxe4 {[%clk 0:00:52.7]} 20... Nxe4 {[%clk
0:01:33.1]} 21. Qxe4 {[%clk 0:00:54.6]} 21... Bxa2 {[%clk 0:01:23.8]} 22. Ra1
{[%clk 0:00:54.6]} 22... Bd5 {[%clk 0:01:18.7]} 23. Qd4 {[%clk 0:00:40.7]} 23...
Be6 {[%clk 0:01:10.3]} 24. Rxa7 {[%clk 0:00:39.1]} 24... Qb5 {[%clk 0:01:11]}
25. Kf2 {[%clk 0:00:37.9]} 25... h6 {[%clk 0:01:07.5]} 26. g4 {[%clk 0:00:36.7]}
26... Rc8 {[%clk 0:01:06.4]} 27. Ra1 {[%clk 0:00:19.2]} 27... Rc2 {[%clk
0:00:35.2]} 28. Re1 {[%clk 0:00:07.9]} 28... Bc4 {[%clk 0:00:29.8]} 29. Qd1
{[%clk 0:00:08.5]} 29... Ra2 {[%clk 0:00:27.4]} 30. Qd8+ {[%clk 0:00:02.6]}
30... Kh7 {[%clk 0:00:27.5]} 31. Qd1 {[%clk 0:00:03.7]} 31... Qe5 {[%clk
0:00:27.8]} 32. Qb1+ {[%clk 0:00:03.4]} 32... g6 {[%clk 0:00:25.2]} 33. f4
{[%clk 0:00:04.6]} 33... Qe6 {[%clk 0:00:20.9]} 34. Qb6 {[%clk 0:00:04.8]} 34...
Qxg4 {[%clk 0:00:20.9]} 35. Qd4 {[%clk 0:00:04.5]} 35... Rxe2+ {[%clk
0:00:18.8]} 36. Rxe2 {[%clk 0:00:03]} 36... Qxe2+ {[%clk 0:00:20.7]} 37. Kg3
{[%clk 0:00:04]} 37... Be6 {[%clk 0:00:22.3]} 38. Qe5 {[%clk 0:00:04.1]} 38...
Qg4+ {[%clk 0:00:23.2]} 39. Kf2 {[%clk 0:00:05.1]} 39... Qh4+ {[%clk 0:00:24.6]}
40. Ke2 {[%clk 0:00:05.9]} 40... Qxh2+ {[%clk 0:00:25.5]} 41. Kd3 {[%clk
0:00:06.5]} 41... Bf5+ {[%clk 0:00:26.4]} 42. Kc3 {[%clk 0:00:06.3]} 42... Qg3
{[%clk 0:00:24.1]} 43. Kb4 {[%clk 0:00:06.4]} 43... Qe1+ {[%clk 0:00:24.2]} 44.
Kb5 {[%clk 0:00:06.3]} 44... h5 {[%clk 0:00:24.3]} 45. Qf6 {[%clk 0:00:05.5]}
45... Qxe3 {[%clk 0:00:24.7]} 46. Qxf7+ {[%clk 0:00:05.1]} 46... Kh6 {[%clk
0:00:25.2]} 47. Qf8+ {[%clk 0:00:07]} 47... Kh7 {[%clk 0:00:26.5]} 48. Qf7+
{[%clk 0:00:08.9]} 48... Kh6 {[%clk 0:00:28]} 49. Qf8+ {[%clk 0:00:10.8]} 49...
Kh7 {[%clk 0:00:29.6]} 50. Qf7+ {[%clk 0:00:12.4]} 50... Kh6 {[%clk 0:00:31.1]}
51. Qf8+ {[%clk 0:00:14.3]} 1/2-1/2